bitfinex/quotes_SOLUSD_20241118
["timestamp","ask_amount","ask_price","bid_price","bid_amount"]
[1731923587998,0.75,244.99,244.93,0.1]
[1731923588199,0.75,244.99,244.92,19.22180607]
[1731923588376,0.75,244.99,244.94,0.1]
[1731923589067,0.75,244.99,244.93,19.22180607]
[1731923589068,0.1,244.96,244.93,19.22180607]
[1731923589273,24.15360607,244.99,244.9,19.22180607]
[1731923589577,0.85,244.99,244.92,19.22180607]
[1731923590177,0.85,244.99,244.93,0.1]
[1731923591196,0.85,244.99,244.77,0.1]
[1731923591197,0.1,244.95,244.82,0.1]
[1731923591492,0.25098,244.97,244.87,0.1]
[1731923591493,0.35098,244.97,244.87,0.1]
[1731923591688,0.35098,244.97,244.74,0.1]
[1731923591689,4.0819,244.98,244.9,19.22180607]
[1731923591888,4.0819,244.98,244.92,0.1]
[1731923592193,4.0819,244.98,244.88,0.1]
[1731923592381,4.0819,244.98,244.93,0.1]
[1731923592575,4.0819,244.98,244.94,0.1]
[1731923593178,4.0819,244.98,244.93,19.22180607]
[1731923593496,0.85,244.99,244.92,0.1]
[1731923593685,0.85,244.99,244.95,0.1]
[1731923593988,0.75,244.99,244.93,0.1]
[1731923594193,0.75,244.99,244.94,19.32180607]
[1731923594377,0.75,244.99,244.92,0.1]
[1731923594696,0.75,244.99,244.93,19.22180607]
[1731923595181,4.8318,244.99,244.92,0.1]
[1731923595387,0.1,244.98,244.92,0.1]
[1731923595691,0.1,244.98,244.93,19.22180607]
[1731923595898,0.75,244.99,244.92,0.1]
[1731923596093,0.1,244.98,244.93,19.22180607]
[1731923596485,4.1819,244.98,244.93,19.22180607]
[1731923596697,0.1,244.95,244.88,19.22180607]
[1731923597081,0.35098,244.97,244.9,19.22180607]
[1731923597491,0.1,244.92,244.88,19.22180607]
[1731923597799,0.1,244.92,244.8,19.22180607]
[1731923597800,0.1,244.92,244.86,19.22180607]
[1731923598198,0.1,244.92,244.8,0.1]
[1731923598496,0.12549,244.93,244.85,19.22180607]
[1731923598497,0.1,244.9,244.85,19.22180607]
[1731923598697,0.12549,244.91,244.85,19.22180607]
[1731923598881,0.1,244.94,244.87,19.32180607]
[1731923599284,4.1822,244.96,244.89,19.22180607]
[1731923599503,19.22180607,244.9,244.89,0.1]
[1731923600594,19.22180607,244.9,244.87,0.1]
[1731923601003,19.22180607,244.94,244.93,0.1]
[1731923601178,19.22180607,244.96,244.93,0.1]
[1731923601385,19.22180607,244.96,244.95,0.1]
[1731923602579,19.22180607,244.96,244.93,0.1]
[1731923602792,19.22180607,244.96,244.74,20.0]
[1731923602793,19.22180607,244.94,244.88,0.1]
[1731923602978,19.22180607,244.96,244.95,0.1]
[1731923603189,19.22180607,244.96,244.94,0.1]
[1731923603392,19.22180607,244.96,244.92,0.1]
[1731923603888,19.22180607,244.96,244.93,0.1]
[1731923604291,19.22180607,244.96,244.9,4.0832]
[1731923604292,19.22180607,244.94,244.91,0.1]
[1731923604491,19.22180607,244.94,244.93,0.1]
[1731923605292,19.22180607,244.94,244.91,0.1]
[1731923605507,38.44361214,244.92,244.84,0.1]
[1731923605709,19.22180607,244.86,244.84,0.1]
[1731923606286,19.22180607,244.86,244.75,0.1]
[1731923606287,0.1,244.83,244.75,0.1]
[1731923606597,19.22180607,244.76,244.75,0.1]
[1731923606793,19.22180607,244.78,244.75,0.1]
[1731923609204,19.22180607,244.76,244.75,0.1]
[1731923610202,19.32180607,244.76,244.66,0.1]
[1731923610502,19.22180607,244.72,244.7,0.1]
[1731923610706,19.22180607,244.74,244.67,0.1]
[1731923610905,19.22180607,244.72,244.67,0.1]
[1731923611097,19.22180607,244.72,244.69,0.1]
[1731923611296,0.1,244.76,244.75,0.1]
[1731923611297,19.22180607,244.76,244.75,0.1]
[1731923611489,19.22180607,244.78,244.77,0.1]
[1731923612101,19.22180607,244.78,244.67,4.0871]
[1731923612102,19.22180607,244.78,244.73,0.1]
[1731923612294,19.22180607,244.74,244.7,0.1]
[1731923613406,0.1,244.62,244.43,0.1]
[1731923613604,0.1,244.57,244.56,0.1]
[1731923613916,19.22180607,244.57,244.45,4.0906]
[1731923614102,19.22180607,244.57,244.48,19.22180607]
[1731923614292,19.22180607,244.57,244.48,23.31200607]
[1731923614621,93.776884,244.67,244.48,23.31200607]
[1731923614622,16.444609,244.89,244.71,0.1]
[1731923614793,35.56641507,244.89,244.7,0.1]
[1731923615002,35.56641507,244.89,244.79,19.22180607]
[1731923615301,19.22180607,244.87,244.77,19.22180607]
[1731923615495,19.22180607,244.85,244.75,19.22180607]
[1731923615886,19.22180607,244.85,244.75,23.30750607]
[1731923616083,23.30560607,244.87,244.77,19.22180607]
[1731923616695,19.22180607,244.89,244.79,19.22180607]
[1731923616898,19.22180607,244.91,244.81,19.22180607]
[1731923617096,19.22180607,244.91,244.75,4.0857]
[1731923617097,19.22180607,244.87,244.77,19.22180607]
[1731923617313,0.1,244.88,244.75,23.30750607]
[1731923617493,19.22180607,244.85,244.75,23.30750607]
[1731923617919,19.22180607,244.9,244.81,19.22180607]
[1731923618209,19.22180607,244.88,244.77,19.22180607]
[1731923618414,19.22180607,244.84,244.7,32.2966]
[1731923618613,19.22180607,244.88,244.77,19.22180607]
[1731923618795,5.2920411,244.95,244.78,20.0]
[1731923619120,0.1,244.92,244.72,0.1]
[1731923619294,0.1,244.92,244.71,24.0864]
[1731923619910,19.22180607,244.83,244.72,19.22180607]
[1731923620110,23.30590607,244.85,244.74,19.22180607]
[1731923620313,19.22180607,244.85,244.74,19.22180607]
[1731923620813,19.22180607,244.81,244.72,19.22180607]
[1731923621013,0.1,244.83,244.68,0.1]
[1731923621014,19.22180607,244.83,244.68,0.1]
[1731923621313,19.22180607,244.83,244.74,19.22180607]
[1731923621789,4.0846,244.82,244.74,19.22180607]
[1731923621993,19.22180607,244.88,244.78,19.22180607]
[1731923623014,19.22180607,244.86,244.76,19.22180607]
[1731923623318,23.30540607,244.88,244.78,19.22180607]
[1731923624598,19.22180607,244.82,244.72,19.22180607]
[1731923624900,19.22180607,244.82,244.63,11.9939]
[1731923624901,19.22180607,244.8,244.7,19.22180607]
[1731923625200,19.22180607,244.84,244.74,19.22180607]
[1731923626121,19.22180607,244.86,244.76,23.30730607]
[1731923626615,19.22180607,244.86,244.63,11.8939]
[1731923626616,19.22180607,244.84,244.72,19.22180607]
[1731923626812,4.084,244.86,244.77,19.22180607]
[1731923627018,23.30580607,244.86,244.75,19.22180607]
[1731923627692,23.30580607,244.86,244.76,4.0856]
[1731923628511,23.30580607,244.86,244.75,19.22180607]
[1731923628929,19.22180607,244.82,244.71,23.30820607]
[1731923629218,19.22180607,244.82,244.62,32.6088]
[1731923629219,19.22180607,244.8,244.69,19.22180607]
[1731923629525,19.22180607,244.82,244.73,19.22180607]
[1731923629824,0.1,244.88,244.77,19.22180607]
[1731923629825,4.0841,244.85,244.77,19.22180607]
[1731923630319,0.25098,244.84,244.77,19.22180607]
[1731923630522,0.25098,244.84,244.75,19.22180607]
[1731923631119,0.25098,244.82,244.73,19.22180607]
[1731923632520,0.25098,244.83,244.73,19.22180607]
[1731923632722,4.33538,244.83,244.73,19.22180607]
[1731923634216,19.22180607,244.86,244.75,19.22180607]
[1731923634417,4.0841,244.85,244.77,19.22180607]
[1731923634609,4.0841,244.85,244.75,19.22180607]
[1731923634808,23.30590607,244.85,244.75,19.22180607]
[1731923635015,23.30590607,244.85,244.73,4.0861]
[1731923635016,19.22180607,244.83,244.73,19.22180607]
[1731923635527,0.25098,244.82,244.73,19.22180607]
[1731923636236,19.22180607,244.79,244.69,19.22180607]
[1731923636404,19.22180607,244.77,244.67,19.22180607]
[1731923636607,19.22180607,244.73,244.63,19.22180607]
[1731923637222,19.22180607,244.73,244.55,42.4705]
[1731923637223,19.22180607,244.74,244.65,19.22180607]
[1731923637803,19.22180607,244.76,244.65,19.22180607]
[1731923637998,4.0859,244.74,244.65,19.22180607]
[1731923639113,4.0851,244.79,244.7,19.22180607]
[1731923639311,4.0848,244.81,244.74,19.22180607]
[1731923639823,4.0848,244.81,244.72,19.22180607]
[1731923640705,19.47278607,244.8,244.7,19.22180607]
[1731923641020,19.47278607,244.8,244.62,4.0879]
[1731923641021,19.22180607,244.78,244.68,19.22180607]
[1731923641231,19.22180607,244.76,244.66,19.22180607]
[1731923642013,19.22180607,244.74,244.64,19.22180607]
[1731923642419,4.0861,244.73,244.64,19.22180607]
[1731923643314,4.0861,244.73,244.61,19.22180607]
[1731923643315,19.22180607,244.71,244.61,19.22180607]
[1731923643716,19.22180607,244.67,244.57,19.22180607]
[1731923644137,12.24118,244.68,244.59,19.22180607]
[1731923644334,4.0871,244.67,244.59,19.22180607]
[1731923644709,19.22180607,244.63,244.55,19.22180607]
[1731923644910,19.22180607,244.63,244.53,19.22180607]
[1731923645432,0.25098,244.62,244.53,19.22180607]
[1731923645931,0.25098,244.6,244.51,19.22180607]
[1731923646227,19.22180607,244.59,244.51,19.22180607]
[1731923646410,4.0886,244.58,244.51,19.22180607]
[1731923649031,19.22180607,244.65,244.55,19.22180607]
[1731923649220,19.22180607,244.63,244.53,19.22180607]
[1731923649426,19.22180607,244.65,244.55,19.22180607]
[1731923649934,4.0873,244.66,244.57,19.22180607]
[1731923650233,4.0873,244.66,244.59,19.22180607]
[1731923650531,16.0771,244.68,244.59,19.22180607]
[1731923650731,15.0771,244.68,244.59,19.22180607]
[1731923651418,10.9902,244.68,244.63,19.22180607]
[1731923651616,4.0867,244.7,244.63,19.22180607]
[1731923652026,4.0863,244.72,244.63,19.22180607]
[1731923652618,23.776884,244.71,244.63,19.22180607]
[1731923653730,19.22180607,244.74,244.65,19.22180607]
[1731923653917,12.9427,244.76,244.67,19.22180607]
[1731923654118,12.9427,244.76,244.69,19.22180607]
[1731923654545,12.9427,244.76,244.71,19.22180607]
[1731923655033,4.0855,244.77,244.71,19.22180607]
[1731923655225,19.22180607,244.8,244.71,19.22180607]
[1731923655419,4.0851,244.79,244.71,19.22180607]
[1731923656032,4.0851,244.79,244.69,23.30850607]
[1731923657535,4.0851,244.79,244.69,19.22180607]
[1731923657839,19.22180607,244.74,244.64,19.22180607]
[1731923658243,19.22180607,244.72,244.62,19.22180607]
[1731923659227,4.0864,244.71,244.62,23.30970607]
[1731923659728,19.22180607,244.72,244.62,23.30970607]
[1731923659925,19.22180607,244.74,244.64,19.22180607]
[1731923660742,23.30720607,244.77,244.67,19.22180607]
[1731923660917,19.22180607,244.75,244.65,19.22180607]
[1731923661118,23.30760607,244.75,244.66,4.0873]
[1731923661423,23.30760607,244.75,244.65,19.22180607]
[1731923662342,23.30760607,244.75,244.65,23.30920607]
[1731923663538,19.22180607,244.75,244.65,23.30920607]
[1731923663736,19.22180607,244.77,244.67,19.22180607]
[1731923664619,4.0856,244.76,244.68,4.0869]
[1731923665726,19.22180607,244.75,244.65,19.22180607]
[1731923665925,19.22180607,244.71,244.61,19.22180607]
[1731923666433,19.22180607,244.75,244.65,19.22180607]
[1731923667633,23.30770607,244.75,244.65,19.22180607]
[1731923667836,19.22180607,244.73,244.64,4.0876]
[1731923668026,4.0859,244.75,244.65,19.22180607]
[1731923668027,23.30770607,244.75,244.65,19.22180607]
[1731923668836,4.0859,244.75,244.67,19.22180607]
[1731923669143,23.30770607,244.75,244.67,19.22180607]
[1731923669532,23.30770607,244.75,244.66,4.0873]
[1731923669739,23.30770607,244.75,244.66,23.30910607]
[1731923671241,19.22180607,244.75,244.66,23.30910607]
[1731923671742,19.22180607,244.72,244.62,23.30960607]
[1731923671951,19.22180607,244.7,244.62,4.0878]
[1731923672834,23.30770607,244.74,244.64,19.22180607]
[1731923673444,23.30770607,244.74,244.64,23.30930607]
[1731923676744,19.22180607,244.7,244.61,4.088]
[1731923678037,4.0868,244.69,244.61,4.088]
[1731923679450,4.0868,244.69,244.54,0.1]
[1731923679451,4.0868,244.69,244.62,19.22180607]
[1731923680135,42.99869007,244.68,244.58,19.22180607]
[1731923680338,12.03854415,244.67,244.58,12.03854415]
[1731923680689,12.03854415,244.67,244.5,0.1]
[1731923680831,12.03854415,244.65,244.56,12.03854415]
[1731923681148,0.25098,244.74,244.58,12.03854415]
[1731923681335,0.25098,244.74,244.55,0.1]
[1731923681336,12.03854415,244.73,244.62,12.03854415]
[1731923681534,12.03854415,244.73,244.64,12.03854415]
[1731923681738,12.03854415,244.75,244.64,12.03854415]
[1731923682733,27.862784,244.74,244.65,4.0874]
[1731923683237,27.862784,244.74,244.66,12.03854415]
[1731923683450,23.776884,244.74,244.66,12.03854415]
[1731923683631,4.0853,244.78,244.68,12.03854415]
[1731923683831,4.0853,244.78,244.65,4.0874]
[1731923683832,12.03854415,244.79,244.7,12.03854415]
[1731923684033,16.12374415,244.79,244.7,12.03854415]
[1731923684362,23.32852757,244.79,244.69,19.24332757]
[1731923685059,19.24332757,244.77,244.67,19.24332757]
[1731923685242,23.776884,244.74,244.65,19.24332757]
[1731923686363,27.862884,244.74,244.65,23.33072757]
[1731923686856,19.24332757,244.71,244.63,19.24332757]
[1731923687159,23.776884,244.7,244.63,19.24332757]
[1731923687361,23.776884,244.7,244.61,19.24332757]
[1731923687943,23.776884,244.72,244.63,19.24332757]
[1731923688365,23.776884,244.72,244.64,4.0876]
[1731923688567,23.45521757,244.71,244.61,19.24332757]
[1731923688741,23.776884,244.68,244.59,19.24332757]
[1731923689948,19.49430757,244.67,244.57,19.24332757]
[1731923690149,23.776884,244.66,244.57,19.24332757]
[1731923690351,27.864184,244.66,244.57,23.33212757]
[1731923691153,0.12549,244.65,244.57,19.24332757]
[1731923691353,23.776884,244.64,244.55,19.24332757]
[1731923691747,24.027864,244.65,244.57,19.24332757]
[1731923691944,23.902374,244.68,244.59,19.24332757]
[1731923692147,0.25098,244.68,244.59,19.24332757]
[1731923692359,19.24332757,244.71,244.61,19.24332757]
[1731923693652,4.086,244.74,244.65,19.24332757]
[1731923694167,19.24332757,244.75,244.65,19.24332757]
[1731923694549,23.32922757,244.75,244.66,4.0873]
[1731923694869,24.027864,244.74,244.66,4.0873]
[1731923695972,28.113864,244.74,244.66,4.0873]
[1731923696152,57.03014682,244.8,244.66,4.0873]
[1731923696153,19.24332757,244.77,244.67,19.24332757]
[1731923696354,24.53785385,244.83,244.73,19.24332757]
[1731923696560,5.29452628,244.83,244.79,19.24332757]
[1731923697449,5.29452628,244.83,244.81,19.24332757]
[1731923698065,5.29452628,244.83,244.81,23.32802757]
[1731923698267,5.29452628,244.83,244.81,19.24332757]
[1731923700853,24.027864,244.88,244.81,19.24332757]
[1731923701447,24.027864,244.84,244.75,19.24332757]
[1731923701654,24.027864,244.84,244.75,23.32892757]
[1731923701960,4.0837,244.88,244.81,19.24332757]
[1731923702153,24.027864,244.88,244.81,19.24332757]
[1731923702672,24.027864,244.88,244.79,19.24332757]
[1731923703193,4.0837,244.87,244.79,19.24332757]
[1731923703375,24.027864,244.84,244.77,19.24332757]
[1731923704083,0.25098,244.85,244.77,19.24332757]
[1731923704457,0.25098,244.83,244.77,19.24332757]
[1731923705372,31.48662757,244.92,244.81,19.24332757]
[1731923705558,35.56962757,244.92,244.83,19.24332757]
[1731923705758,31.48662757,244.92,244.83,19.24332757]
[1731923706470,31.48662757,244.92,244.83,23.32762757]
[1731923707079,0.25098,244.92,244.83,23.32762757]
[1731923707370,19.24332757,244.94,244.85,19.24332757]
[1731923707579,4.0819,244.98,244.85,19.24332757]
[1731923707756,19.24332757,244.96,244.85,19.24332757]
[1731923708061,19.24332757,244.9,244.81,19.24332757]
[1731923708250,12.01377371,244.92,244.83,12.01377371]
[1731923708455,12.01377371,244.92,244.84,4.0842]
[1731923709483,23.902374,244.93,244.84,4.0842]
[1731923709656,12.01377371,244.94,244.84,4.0842]
[1731923710051,12.01377371,244.95,244.85,12.01377371]
[1731923710479,12.01377371,244.97,244.87,12.01377371]
[1731923710667,4.0819,244.98,244.89,12.01377371]
[1731923710867,16.09567371,244.98,244.89,12.01377371]
[1731923711068,16.09567371,244.98,244.87,16.09747371]
[1731923711265,12.01377371,244.94,244.85,12.01377371]
[1731923711580,12.01377371,244.96,244.87,12.01377371]
[1731923711887,16.09567371,244.98,244.87,12.01377371]
[1731923712178,0.12549,244.97,244.87,12.01377371]
[1731923712381,16.09567371,244.98,244.88,4.0836]
[1731923713858,12.01377371,244.98,244.88,16.09737371]
[1731923714058,0.75,244.99,244.95,12.01377371]
[1731923714258,0.75,244.99,244.97,12.01377371]
[1731923714506,0.75,244.99,244.95,12.01377371]
[1731923715486,0.75,244.99,244.96,4.0822]
[1731923717984,0.75,244.99,244.93,12.01377371]
[1731923718183,0.75,244.99,244.95,12.01377371]
[1731923718785,12.01377371,244.98,244.91,4.0831]
[1731923719182,0.75,244.99,244.91,4.0831]
[1731923719377,0.75,244.99,244.91,16.09687371]
[1731923719588,0.75,244.99,244.93,12.01377371]
[1731923719989,0.75,244.99,244.94,4.0826]
[1731923721596,0.75,244.99,244.95,12.01377371]
[1731923722086,0.75,244.99,244.96,4.0822]
[1731923723295,0.75,244.99,244.95,12.01377371]
[1731923725304,0.75,244.99,244.97,12.01377371]
[1731923726987,0.75,244.99,244.98,4.0819]
[1731923733614,0.75,244.99,244.98,16.09567371]
[1731923735510,0.75,244.99,244.98,15.98123293]
[1731923736285,0.75,244.99,244.96,16.09597371]
[1731923736497,0.75,244.99,244.96,4.0822]
[1731923738012,0.75,244.99,244.97,12.01377371]
[1731923738600,0.75,244.99,244.96,4.0822]
[1731923739518,0.75,244.99,244.97,12.01377371]
[1731923739912,0.75,244.99,244.96,16.09597371]
[1731923744002,0.75,244.99,244.97,12.01377371]
[1731923744197,0.75,244.99,244.97,7.6800567]
[1731923748594,0.75,244.99,244.92,30.7202268]
[1731923748806,0.75,244.99,244.9,0.1]
[1731923748807,0.75,244.99,244.95,7.6800567]
[1731923749006,0.75,244.99,244.93,7.6800567]
[1731923749213,4.8318,244.99,244.89,7.6800567]
[1731923749718,4.8318,244.99,244.91,7.6800567]
[1731923750116,4.8318,244.99,244.85,4.0841]
[1731923750305,4.8318,244.99,244.91,11.7630567]
[1731923750512,4.0819,244.98,244.91,4.083]
[1731923750809,0.75,244.99,244.93,7.6800567]
[1731923751015,7.6800567,244.94,244.78,4.0853]
[1731923751206,0.25098,244.93,244.8,7.6800567]
[1731923751415,7.6800567,244.9,244.8,7.6800567]
[1731923751612,7.6800567,244.9,244.72,0.1]
[1731923751613,7.6800567,244.86,244.68,4.0869]
[1731923751815,7.6800567,244.86,244.75,7.6800567]
[1731923752017,7.6800567,244.86,244.77,7.6800567]
[1731923752423,0.25098,244.87,244.79,7.6800567]
[1731923752612,24.027864,244.87,244.79,7.6800567]
[1731923752815,4.0836,244.88,244.81,7.6800567]
[1731923753015,0.25098,244.87,244.78,7.6800567]
[1731923753207,24.027864,244.87,244.78,7.6800567]
[1731923753427,31.7079207,244.87,244.78,7.6800567]
[1731923753609,4.0836,244.88,244.8,7.6800567]
[1731923754315,4.0836,244.88,244.79,12.0180147]
[1731923755224,4.0836,244.88,244.8,12.0180147]
[1731923755425,6.6973,244.89,244.82,12.0180147]
[1731923756505,10.7809,244.89,244.82,12.0180147]
[1731923756902,6.6973,244.89,244.84,12.0180147]
[1731923757106,6.6973,244.89,244.82,12.0180147]
[1731923757923,6.6973,244.89,244.84,12.0180147]
[1731923758331,6.6973,244.89,244.86,12.0180147]
[1731923758530,30.0,244.87,244.86,12.0180147]
[1731923758709,30.0,244.87,244.82,12.0180147]
[1731923759027,30.0,244.87,244.84,12.0180147]
[1731923759226,30.0,244.87,244.81,14.2967]
[1731923759431,30.0,244.87,244.83,12.0180147]
[1731923762536,30.0,244.87,244.85,12.0180147]
[1731923764031,11.9745,244.94,244.85,12.0180147]
[1731923764330,16.0572,244.94,244.86,12.0180147]
[1731923765434,11.9745,244.94,244.86,16.1018147]
[1731923765645,11.9745,244.94,244.86,26.3117147]
[1731923766216,45.5502147,244.97,244.88,12.0180147]
[1731923766909,12.7680147,244.99,244.9,12.0180147]
[1731923767131,0.75,244.99,244.92,12.0180147]
[1731923767329,0.75,244.99,244.94,12.0180147]
[1731923768837,0.75,244.99,244.96,12.0180147]
[1731923769423,0.75,244.99,244.97,4.0821]
[1731923770754,0.75,244.99,244.97,22.2233147]
[1731923771643,0.75,244.99,244.97,10.2053]
[1731923771943,0.75,244.99,244.95,12.0180147]
[1731923772135,0.75,244.99,244.98,12.0180147]
[1731923772914,0.75,244.99,244.98,16.0999147]
[1731923774223,0.75,244.99,244.91,0.1]
[1731923774520,0.75,244.99,244.95,12.0180147]
[1731923775338,0.75,244.99,244.98,0.1]
[1731923775543,0.75,244.99,244.98,31.3255]
[1731923775731,0.75,244.99,244.98,51.2255]
[1731923776245,0.75,244.99,244.98,39.00230187]
[1731923776932,0.75,244.99,244.98,43.08420187]
[1731923777133,0.75,244.99,244.98,42.98420187]
[1731923777331,0.75,244.99,244.98,35.3074]
[1731923777531,0.75,244.99,244.98,42.98420187]
[1731923778653,0.75,244.99,244.98,43.08420187]
[1731923779142,0.75,244.99,244.98,42.98420187]
[1731923779340,0.75,244.99,244.98,63.08420187]
[1731923783346,1.0,245.0,244.98,63.08420187]
[1731923783557,3.51472585,245.14,245.01,0.1]
[1731923783733,38.56314187,245.16,245.06,7.67680187]
[1731923785126,30.88634,245.16,245.08,7.67680187]
[1731923785329,30.88634,245.16,245.07,4.0804]
[1731923785534,34.40419964,245.16,245.08,7.67680187]
[1731923786142,7.67680187,245.14,245.07,4.0804]
[1731923787234,38.48319964,245.16,245.07,4.0804]
[1731923787439,7.67680187,245.13,245.07,4.0804]
[1731923787640,7.67680187,245.13,245.04,7.67680187]
[1731923788449,7.67680187,245.13,245.02,4.0812]
[1731923788634,7.67680187,245.13,245.03,7.67680187]
[1731923789035,34.40419964,245.16,245.05,7.67680187]
[1731923789236,7.67680187,245.15,245.05,7.67680187]
[1731923789447,7.67680187,245.13,245.05,7.67680187]
[1731923789646,7.67680187,245.13,245.03,7.67680187]
[1731923789847,7.67680187,245.13,245.04,4.0809]
[1731923790034,7.67680187,245.11,245.04,4.0809]
[1731923790638,4.0792,245.15,245.04,4.0809]
[1731923790834,7.67680187,245.12,245.04,4.0809]
[1731923791035,7.67680187,245.12,244.99,20.0]
[1731923791233,7.67680187,245.07,244.94,12.6647]
[1731923791445,4.0791,245.15,244.92,30.6772]
[1731923791446,7.67680187,245.02,244.93,4.0827]
[1731923791651,7.67680187,245.02,244.93,11.75950187]
[1731923791835,44.9896,245.1,244.95,7.67680187]
[1731923792031,44.9896,245.1,244.99,7.67680187]
[1731923792356,12.0002544,245.06,244.97,12.0002544]
[1731923793550,12.0002544,245.04,244.94,12.0002544]
[1731923794657,44.9896,245.1,244.93,24.0827]
[1731923794658,12.0002544,245.05,244.96,12.0002544]
[1731923795039,12.0002544,245.07,244.96,12.0002544]
[1731923795754,16.0806544,245.07,244.97,4.0821]
[1731923796061,12.0002544,245.07,244.97,4.0821]
[1731923796251,12.0002544,245.07,244.98,12.0002544]
[1731923796446,12.0002544,245.09,244.98,12.0002544]
[1731923796647,12.0002544,245.05,244.97,14.2874]
[1731923797665,12.0002544,245.05,244.97,10.2053]
[1731923798847,12.0002544,245.07,244.97,10.2053]
[1731923799052,12.0002544,245.07,244.98,12.0002544]
[1731923799561,12.0002544,245.07,244.97,10.2053]
[1731923799856,12.0002544,245.05,244.97,14.2874]
[1731923800044,12.0002544,245.03,244.92,12.0002544]
[1731923800244,12.0002544,245.03,244.83,12.118015]
[1731923800245,12.0002544,244.99,244.84,4.0842]
[1731923800463,12.0002544,244.99,244.89,12.0002544]
[1731923801436,12.0002544,244.99,244.84,4.0842]
[1731923801437,0.1,245.15,244.95,12.0002544]
[1731923801641,4.0803,245.08,244.97,12.0002544]
[1731923801843,12.0002544,245.04,244.95,12.0002544]
[1731923802347,4.0803,245.08,244.95,12.0002544]
[1731923802652,0.25098,245.03,244.95,12.0002544]
[1731923802953,12.0002544,245.02,244.93,12.0002544]
[1731923803156,0.12549,245.03,244.95,12.0002544]
[1731923803463,12.0002544,245.06,244.97,12.0002544]
[1731923803662,61.0698544,245.1,244.99,12.0002544]
[1731923804162,61.0698544,245.1,244.95,31.0375]
[1731923804163,56.9898544,245.1,245.01,12.0002544]
[1731923805352,56.9898544,245.1,245.02,4.0812]
[1731923805561,56.9898544,245.1,245.02,14.2844]
[1731923806964,61.0698544,245.1,245.02,14.2844]
[1731923807469,56.9898544,245.1,245.02,14.2844]
[1731923808670,0.12549,245.09,245.02,10.2032]
[1731923808965,12.0002544,245.08,245.0,4.0815]
[1731923809370,0.12549,245.05,244.97,16.0823544]
[1731923809671,0.12549,245.06,244.97,16.0823544]
[1731923810359,16.0807544,245.07,244.97,26.2875544]
[1731923810566,0.12549,245.06,244.97,14.2873]
[1731923810982,12.0002544,245.05,244.97,14.2873]
[1731923811345,16.0811544,245.05,244.93,12.0002544]
[1731923811566,16.0811544,245.05,244.91,12.0002544]
[1731923811567,12.0002544,245.01,244.91,12.0002544]
[1731923812279,0.25098,245.0,244.91,7.68385049]
[1731923812667,0.1,245.08,244.93,7.68385049]
[1731923812851,0.25098,245.02,244.93,7.68385049]
[1731923813047,0.25098,245.02,244.92,10.2074]
[1731923813247,0.25098,245.02,244.93,7.68385049]
[1731923813456,0.25098,245.02,244.92,10.2074]
[1731923813457,0.25098,245.0,244.92,10.2074]
[1731923813670,0.12549,244.98,244.92,10.2074]
[1731923815254,0.12549,244.99,244.92,10.2074]
[1731923815569,7.93483049,244.97,244.87,10.2094]
[1731923815756,0.25098,244.92,244.77,30.7775]
[1731923815965,7.68385049,244.87,244.78,7.68385049]
[1731923816160,0.25098,244.86,244.78,7.68385049]
[1731923816670,0.12549,244.86,244.8,7.68385049]
[1731923816984,0.25098,244.88,244.8,7.68385049]
[1731923817554,0.25098,244.87,244.78,21.98225049]
[1731923818274,12.27023779,244.87,244.78,14.2984]
[1731923818470,0.12549,244.84,244.78,14.2984]
[1731923819062,0.25098,244.85,244.78,26.31765779]
[1731923819269,0.25098,244.85,244.78,10.2132]
[1731923819455,0.25098,244.83,244.78,10.2132]
[1731923819864,0.25098,244.83,244.76,16.10475779]
[1731923820070,0.12549,244.83,244.76,12.01925779]
[1731923820273,12.01925779,244.91,244.82,12.01925779]
[1731923820773,16.10235779,244.91,244.83,4.0844]
[1731923821349,16.10235779,244.91,244.82,22.23075779]
[1731923821554,0.25098,244.9,244.82,22.23075779]
[1731923822077,11.9385,244.92,244.86,12.01925779]
[1731923822277,16.10145779,244.97,244.88,12.01925779]
[1731923822671,16.10145779,244.97,244.88,16.10275779]
[1731923822857,16.10145779,244.97,244.86,12.01925779]
[1731923823060,12.01925779,244.95,244.86,16.10305779]